fUSD/lending_fUSD_20250617
["ID","MTS","AMOUNT","RATE_DAILY","PERIOD"]
[366239557,1750151134058,-600.0,0.00013942,2]
[366239558,1750151134095,-1200.0,0.00013943,2]
[366239559,1750151134121,-2121.36,0.00013944,2]
[366239560,1750151134167,-4300.15,0.00013944,2]
[366239561,1750151134194,-180.0,0.00014018,2]
[366239562,1750151134223,-300.0,0.00014026,2]
[366239563,1750151134248,-5219.85,0.00014027,2]
[366239564,1750151134297,-1312.0,0.00014027,2]
[366239565,1750151134321,-6004.22,0.00014052,2]
[366239566,1750151134345,-2683.78,0.00014053,2]
[366239567,1750151134540,-7014.46,0.00014053,2]
[366239568,1750151134565,-1000.0,0.00014053,2]
[366239569,1750151142349,166.47551217,0.00013983,2]
[366239570,1750151210615,1500.0,0.00014073,2]
[366239571,1750151213262,319.06448783,0.00013164,2]
[366239572,1750151213287,180.93551217,0.00013164,2]
[366239573,1750151269947,521.22,0.00013952,2]
[366239574,1750151308886,200.0,0.0001394,2]
[366239575,1750151311785,666.0,0.00013944,2]
[366239576,1750151312088,1852.42,0.00013778,2]
[366239578,1750151377884,150.0,0.00014025,2]
[366239579,1750151412628,282.0,0.00013205,2]
[366239580,1750151412937,282.0,0.00013678,2]
[366239585,1750151431875,-282.0,0.0001415,3]
[366239586,1750151431886,-500.0,0.00014307,2]
[366239587,1750151431896,-166.43,0.00014362,2]
[366239588,1750151431907,-500.0,0.00014398,2]
[366239589,1750151431917,-2667.97,0.00014398,2]
[366239590,1750151431927,-1200.0,0.00014431,2]
[366239591,1750151431939,-2751.0,0.00014432,2]
[366239592,1750151431949,-300.0,0.00014479,2]
[366239594,1750151431960,-250.0,0.0001448,2]
[366239596,1750151431971,-600.0,0.0001448,4]
[366239598,1750151431981,-151.0,0.00014483,2]
[366239599,1750151431992,-23900.0,0.0001449,2]
[366239600,1750151432003,-1000.0,0.0001449,2]
[366239601,1750151432013,-150.0,0.00014491,2]
[366239602,1750151432024,-23199.5371316,0.00014492,2]
[366239603,1750151432041,-1446.9684225,0.00014492,2]
[366239605,1750151432067,-1585.53784902,0.00014492,2]
[366239606,1750151432080,-492.77659688,0.00014492,2]
[366239607,1750151432090,-365.42,0.00014513,2]
[366239608,1750151432100,-151.0,0.0001453,2]
[366239609,1750151432111,-151.0,0.00014531,2]
[366239610,1750151432127,-151.0,0.00014531,2]
[366239611,1750151432138,-151.0,0.00014531,2]
[366239612,1750151432148,-151.0,0.00014538,2]
[366239613,1750151432158,-3162.5,0.00014542,2]
[366239614,1750151432168,-163.45876627,0.00014593,2]
[366239616,1750151432181,-282.0,0.00014623,3]
[366239618,1750151432191,-307.0,0.00014695,2]
[366239620,1750151432202,-454.0,0.00014696,2]
[366239622,1750151432212,-1766.0,0.00014724,2]
[366239624,1750151432222,-220.45402299,0.00014724,2]
[366239626,1750151432234,-3256.11,0.00014871,2]
[366239628,1750151432244,-3256.11,0.00014875,2]
[366239630,1750151432254,-3256.11,0.00014879,2]
[366239632,1750151432265,-3256.11,0.00014883,2]
[366239633,1750151432275,-3256.11,0.00014887,2]
[366239635,1750151432284,-3256.11,0.00014891,2]
[366239637,1750151432294,-3256.11,0.00014895,2]
[366239638,1750151432305,-3256.11,0.00014899,2]
[366239639,1750151432315,-3256.11,0.00014903,2]
[366239642,1750151432325,-3256.11,0.00014907,2]
[366239643,1750151432335,-3256.11,0.00014911,2]
[366239644,1750151432344,-1879.56801822,0.00014915,2]
[366239645,1750151432358,-1376.54198178,0.00014915,2]
[366239646,1750151432368,-166.46,0.00014918,2]
[366239647,1750151432378,-150.0,0.00014918,2]
[366239648,1750151432388,-150.0,0.00014918,2]
[366239649,1750151432398,-150.0,0.00014918,2]
[366239650,1750151432408,-150.0,0.00014918,2]
[366239651,1750151432418,-3256.11,0.00014918,2]
[366239652,1750151432429,-958.23005997,0.00014922,2]
[366239653,1750151432450,-404.35360807,0.00014922,2]
[366239654,1750151432462,-1893.52633196,0.00014922,2]
[366239655,1750151432472,-600.0,0.00014926,4]
[366239656,1750151432482,-300.0,0.00014926,2]
[366239657,1750151432491,-250.0,0.00014926,2]
[366239658,1750151432501,-2456.47366794,0.00014926,2]
[366239659,1750151432513,-799.63633206,0.00014926,2]
[366239660,1750151432523,-3256.11,0.0001493,2]
[366239661,1750151432534,-1824.25366794,0.00014934,2]
[366239662,1750151432546,-1431.85633206,0.00014934,2]
[366239663,1750151432556,-2118.14367294,0.00014938,2]
[366239664,1750151432568,-1137.96632706,0.00014938,2]
[366239665,1750151432578,-162.03367294,0.00014942,2]
[366239666,1750151432590,-3094.07632706,0.00014942,2]
[366239667,1750151432600,-3256.11,0.00014946,2]
[366239668,1750151432610,-171.96,0.00014985,2]
[366239669,1750151432620,-250.0,0.00015,2]
[366239670,1750151432629,-152.35,0.00015,2]
[366239671,1750151432639,-282.0,0.00015096,4]
[366239672,1750151432648,-3293.50367294,0.00015108,2]
[366239673,1750151432698,-4205.85684801,0.00015108,2]
[366239674,1750151432711,-1964.33339898,0.00015108,2]
[366239675,1750151432721,-151.0,0.00015122,2]
[366239676,1750151432731,-256.4583895,0.00015122,2]
[366239677,1750151432741,-1957.856,0.00015122,2]
[366239678,1750151432751,-207.4,0.00015122,2]
[366239679,1750151432761,-2030.296672,0.00015177,2]
[366239680,1750151432771,-1967.27323952,0.00015232,2]
[366239681,1750151432789,-138.14440934,0.00015232,2]
[366239682,1750151432798,-114.92841067,0.00015287,2]
[366239683,1750151432810,-1765.46802316,0.00015287,2]
[366239684,1750151432822,-302.92166804,0.00015287,2]
[366239685,1750151432831,-113.48833196,0.00015306,2]
[366239686,1750151437558,-408.01,0.00014207,2]
[366239687,1750151437569,-151.0,0.00014531,2]
[366239688,1750151437579,-386.51166804,0.00015306,2]
[366239689,1750151437589,-500.0,0.00015306,2]
[366239690,1750151437599,-505.56687145,0.00015306,2]
[366239691,1750151437609,-500.0,0.00015306,2]
[366239692,1750151437618,-522.30787011,0.00015306,2]
[366239693,1750151437628,-500.0,0.00015306,2]
[366239694,1750151437639,-60.77829256,0.00015306,2]
[366239695,1750151437661,-439.22170744,0.00015306,2]
[366239696,1750151437671,-306.2528842,0.00015306,2]
[366239697,1750151437681,-555.77980348,0.00015306,2]
[366239698,1750151437690,-111.57200034,0.00015306,2]
[366239699,1750151437701,-368.13401955,0.00015306,2]
[366239700,1750151437723,-20.29398011,0.00015306,2]
[366239701,1750151437732,-500.0,0.00015306,2]
[366239702,1750151437741,-125.16477012,0.00015306,2]
[366239708,1750151439677,-374.83522988,0.00015306,2]
[366239709,1750151439687,-500.0,0.00015306,2]
[366239710,1750151439697,-500.0,0.00015306,2]
[366239711,1750151439707,-300.0,0.00015306,2]
[366239712,1750151439717,-5.57105386,0.00015306,2]
[366239713,1750151439729,-494.42894614,0.00015306,2]
[366239714,1750151439739,-500.0,0.00015306,2]
[366239715,1750151439749,-181.28477019,0.00015306,2]
[366239716,1750151439758,-500.0,0.00015306,2]
[366239717,1750151440065,-223.07870114,0.00015306,2]
[366239718,1750151440075,-9463.69391993,0.00015307,2]
[366239719,1750151440085,-2264.10087164,0.00015342,2]
[366239720,1750151440096,-200.0,0.00015351,2]
[366239721,1750151440106,-198.48,0.00015351,2]
[366239722,1750151440117,-168.0,0.0001536,2]
[366239723,1750151440131,-168.0,0.00015368,2]
[366239724,1750151440141,-2347.87260389,0.00015397,2]
[366239725,1750151440151,-2434.74389024,0.00015452,2]
[366239726,1750151440163,-9463.69391993,0.00015506,2]
[366239727,1750151440173,-2524.82941417,0.00015507,2]
[366239728,1750151440182,-2606.67,0.00015542,2]
[366239729,1750151440193,-2618.2481025,0.00015562,2]
[366239730,1750151440204,-282.0,0.00015568,4]
[366239731,1750151440214,-2715.12328229,0.00015617,2]
[366239732,1750151440224,-255.0,0.00015621,2]
[366239733,1750151440234,-2815.58284374,0.00015672,2]
[366239734,1750151440244,-533.3810874,0.000157,2]
[366239735,1750151440253,-800.0,0.000157,5]
[366239736,1750151440263,-9463.69391993,0.00015705,2]
[366239737,1750151440272,-2170.06366335,0.00015727,2]
[366239738,1750151440282,-1700.0,0.000158,5]
[366239739,1750151440291,-202.33193604,0.000158,2]
[366239740,1750151440301,-202.331936,0.000158,2]
[366239741,1750151440315,-202.331936,0.000158,2]
[366239742,1750151440325,-202.331936,0.000158,2]
[366239743,1750151440334,-202.331936,0.000158,2]
[366239744,1750151440344,-202.331936,0.000158,2]
[366239745,1750151440354,-202.331936,0.000158,2]
[366239746,1750151440364,-202.331936,0.000158,2]
[366239747,1750151440374,-202.331936,0.000158,2]
[366239748,1750151440384,-202.331936,0.000158,2]
[366239749,1750151440393,-202.331936,0.000158,2]
[366239750,1750151440403,-202.331936,0.000158,2]
[366239751,1750151440413,-202.331936,0.000158,2]
[366239752,1750151440424,-168.0,0.00015808,2]
[366239753,1750151440435,-1000.0,0.00015809,2]
[366239754,1750151440445,-202.331936,0.00015829,2]
[366239755,1750151440454,-420.0,0.00015855,2]
[366239756,1750151440465,-1680.0,0.00015874,2]
[366239757,1750151440474,-2600.0,0.000159,5]
[366239758,1750151440485,-187.75778534,0.000159,2]
[366239759,1750151440495,-187.75778531,0.000159,2]
[366239760,1750151440504,-187.75778531,0.000159,2]
[366239761,1750151440514,-187.75778531,0.000159,2]
[366239762,1750151440523,-187.75778531,0.000159,2]
[366239763,1750151440533,-187.75778531,0.000159,2]
[366239764,1750151440544,-187.75778531,0.000159,2]
[366239765,1750151440554,-187.75778531,0.000159,2]
[366239766,1750151440563,-187.75778531,0.000159,2]
[366239767,1750151440573,-187.75778531,0.000159,2]
[366239768,1750151440583,-202.331936,0.000159,2]
[366239769,1750151440593,-500.0,0.00015904,2]
[366239770,1750151440603,-9463.69391993,0.00015904,2]
[366239771,1750151440613,-187.75778531,0.0001592,2]
[366239772,1750151440622,-202.331936,0.00015971,2]
[366239773,1750151440632,-166.46,0.00015983,2]
[366239774,1750151440642,-550.30938497,0.00016,2]
[366239775,1750151440651,-25532.62028919,0.00016,2]
[366239776,1750151440694,-11260.8477478,0.00016,2]
[366239777,1750151440706,-919.39818052,0.00016,2]
[366239778,1750151440717,-1403.07622281,0.00016,2]
[366239779,1750151440772,-4780.166,0.00016,2]
[366239780,1750151442379,201.99998,0.00013205,2]
[366239789,1750151442722,-2509.16923208,0.00016,2]
[366239790,1750151442777,-79594.7223276,0.00016,2]
[366239791,1750151442787,-187.75778531,0.00016001,2]
[366239792,1750151442798,-282.0,0.00016041,5]
[366239793,1750151442809,-202.331936,0.00016043,2]
[366239794,1750151442819,-187.75778531,0.00016082,2]
[366239795,1750151442829,-9463.69391993,0.00016104,2]
[366239796,1750151442840,-3333.0,0.00016106,2]
[366239797,1750151442850,-637.0,0.00016106,2]
[366239798,1750151442859,-802.0,0.00016106,2]
[366239799,1750151442869,-2003.0,0.00016106,2]
[366239800,1750151442882,-558.0,0.00016106,2]
[366239801,1750151442891,-1277.0,0.00016106,2]
[366239802,1750151442901,-590.0,0.00016106,2]
[366239803,1750151442911,-928.0,0.00016106,2]
[366239804,1750151442921,-202.331936,0.00016114,2]
[366239805,1750151442932,-614.0,0.00016138,2]
[366239806,1750151442942,-753.94,0.0001614,2]
[366239807,1750151442952,-187.75778531,0.00016163,2]
[366239808,1750151442962,-202.331936,0.00016186,2]
[366239809,1750151442971,-187.75778531,0.00016244,2]
[366239810,1750151442981,-202.331936,0.00016257,2]
[366239811,1750151442991,-6672.53060541,0.0001628,2]
[366239812,1750151443002,-1042.667058,0.00016282,2]
[366239813,1750151443013,-3500.0,0.000163,5]
[366239814,1750151443022,-9463.69391993,0.00016303,2]
[366239815,1750151443032,-187.75778531,0.00016325,2]
[366239816,1750151443043,-202.331936,0.00016329,2]
[366239817,1750151443054,-10158.3327,0.00016337,2]
[366239818,1750151443063,-1970.9126934,0.00016337,2]
[366239819,1750151443073,-5000.0,0.00016337,2]
[366239820,1750151443084,-500.0,0.00016338,2]
[366239821,1750151443094,-3001.70024181,0.00016338,2]
[366239824,1750151443133,-97.08791787,0.00016338,2]
[366239826,1750151443145,-392.72164948,0.00016338,2]
[366239827,1750151443156,-1359.85051317,0.00016338,2]
[366239828,1750151443169,-325.83024726,0.00016338,2]
[366239829,1750151443200,-5551.62596235,0.00016338,2]
[366239830,1750151443213,-25396.86466806,0.00016338,2]
[366239831,1750151443223,-12677.6291,0.00016338,2]
[366239832,1750151443233,-1000.0,0.00016338,2]
[366239833,1750151443243,-161.63537496,0.00016338,2]
[366239834,1750151443253,-669.28217849,0.00016338,2]
[366239835,1750151443263,-373.79234201,0.00016338,2]
[366239836,1750151443274,-388.16577744,0.00016338,2]
[366239837,1750151443283,-150.0,0.0001634,2]
[366239838,1750151443294,-150.0,0.00016356,2]
[366239839,1750151443304,-570.02494151,0.00016372,2]
[366239840,1750151443314,-868.60908591,0.00016374,2]
[366239841,1750151443324,-200.0,0.00016379,2]
[366239842,1750151443334,-2815.25069742,0.00016384,2]
[366239843,1750151443344,-2815.25069742,0.00016385,2]
[366239844,1750151443354,-29460.82749728,0.00016388,2]
[366239845,1750151443364,-4091.0,0.0001639,2]
[366239846,1750151443374,-155.0,0.0001639,2]
[366239847,1750151443384,-884.0,0.0001639,2]
[366239848,1750151443394,-1370.0504727,0.0001639,2]
[366239849,1750151443406,-5742.9495273,0.0001639,2]
[366239850,1750151443416,-1000.0,0.00016392,2]
[366239851,1750151443426,-4513.61405393,0.00016393,2]
[366239853,1750151445565,-2131.2,0.00016393,2]
[366239854,1750151445671,-2959.83944493,0.00016393,2]
[366239855,1750151445778,-13763.13153105,0.00016393,2]
[366239856,1750151445791,-1961.89449778,0.00016393,2]
[366239857,1750151445941,-3599.27753915,0.00016393,2]
[366239858,1750151445989,-531.87043044,0.00016393,2]
[366239859,1750151446000,-125.0343158,0.00016393,2]
[366239861,1750151471528,202.00002,0.00013205,2]
[366239862,1750151476757,1322.04,0.00013778,2]
[366239864,1750151586503,211.36,0.00013778,2]
[366239865,1750151596984,500.0,0.00013164,2]
[366239866,1750151617241,510.59754209,0.00013164,2]
[366239867,1750151678478,180.21587915,0.00014018,2]
[366239868,1750151753955,2737.21106659,0.000138,5]
[366239869,1750151753978,2826.78893341,0.000138,5]
[366239870,1750151767828,7173.21106659,7.945e-05,2]
[366239871,1750151767852,2542.80070641,7.945e-05,2]
[366239872,1750151853205,150.0,0.000141,2]
[366239874,1750151871585,546.2,0.00013699,2]
[366239914,1750152320604,5806.68017363,9e-05,2]
[366239915,1750152326880,753.87540277,0.000108,2]
[366239916,1750152337937,200.44371719,9e-05,2]
[366239917,1750152337961,1466.40641784,9e-05,2]
[366239918,1750152357023,8533.59358216,6.94e-05,2]
[366239919,1750152357047,4027.71482633,6.94e-05,2]
[366239921,1750152481903,5972.28517367,0.00014,2]
[366239922,1750152481928,10000.0,0.00014,2]
[366239923,1750152481951,10000.0,0.00014,2]
[366239924,1750152481975,10000.0,0.00014,2]
[366239925,1750152481997,10000.0,0.00014,2]
[366239926,1750152482021,10000.0,0.00014,2]
[366239927,1750152482045,10000.0,0.00014,2]
[366239928,1750152482068,10000.0,0.00014,2]
[366239929,1750152482094,10000.0,0.00014,2]
[366239930,1750152482119,10000.0,0.00014,2]
[366239931,1750152482144,10000.0,0.00014,2]
[366239932,1750152482169,10000.0,0.00014,2]
[366239933,1750152482193,10000.0,0.00014,2]
[366239934,1750152482218,10000.0,0.00014,2]
[366239935,1750152482242,10000.0,0.00014,2]
[366239936,1750152482267,8885.36195171,0.00014,2]
[366239937,1750152491994,264.0,0.00013514,2]
[366239938,1750152492258,264.0,0.00013983,2]
[366239956,1750152602726,500.0,0.00013163,2]
[366239960,1750152631866,-264.0,0.00014453,3]
[366239961,1750152631876,-211.36,0.00014543,2]
[366239962,1750152631886,-3.75857813,0.00014682,2]
[366239963,1750152632038,-147.24142187,0.00014682,2]
[366239964,1750152632048,-151.0,0.00014685,2]
[366239965,1750152632057,-151.0,0.00014691,2]
[366239966,1750152632067,-151.0,0.00014692,2]
[366239967,1750152632076,-151.0,0.00014692,2]
[366239968,1750152632086,-151.0,0.00014692,2]
[366239969,1750152632096,-151.0,0.00014693,2]
[366239970,1750152632105,-150.0,0.00014706,2]
[366239971,1750152632115,-140.49673207,0.0001476,2]
[366239972,1750152632126,-525.50326793,0.0001476,2]
[366239973,1750152632137,-78.86408161,0.00014828,2]
[366239974,1750152632149,-171.13591839,0.00014828,2]
[366239975,1750152632158,-285.63656779,0.00014916,2]
[366239976,1750152632170,-28.36343221,0.00014916,2]
[366239977,1750152632180,-300.0,0.00014916,2]
[366239978,1750152632190,-300.0,0.00014917,2]
[366239979,1750152632199,-300.0,0.00014917,2]
[366239980,1750152632209,-1200.0,0.00014917,2]
[366239981,1750152632218,-150.0,0.00014918,2]
[366239982,1750152632228,-150.0,0.00014918,2]
[366239983,1750152632238,-150.0,0.00014918,2]
[366239984,1750152632247,-150.0,0.00014918,2]
[366239986,1750152632256,-150.0,0.00014918,2]
[366239988,1750152632265,-150.0,0.00014918,2]
[366239990,1750152632275,-150.0,0.00014918,2]
[366239992,1750152632284,-150.0,0.00014918,2]
[366239994,1750152632294,-264.0,0.00014922,3]
[366239996,1750152632303,-670.79292779,0.00014995,2]
[366239998,1750152632402,-1078.10631902,0.00014995,2]
[366239999,1750152632423,-103.52075319,0.00014995,2]
[366240000,1750152632434,-250.0,0.00015,2]
[366240001,1750152632443,-157.55,0.00015,2]
[366240002,1750152632453,-319.00707262,0.00015,14]
[366240003,1750152632478,-162.06516113,0.00015,14]
[366240004,1750152632488,-244.2326928,0.00015,2]
[366240005,1750152632498,-3160.40335901,0.00015,2]
[366240006,1750152632508,-196.87766313,0.00015,20]
[366240007,1750152632518,-1500.0,0.00015009,2]
[366240008,1750152632527,-593.0,0.00015021,2]
[366240009,1750152632537,-154.0,0.00015058,2]
[366240010,1750152632546,-978.0,0.00015087,2]
[366240011,1750152632555,-250.0,0.00015118,2]
[366240012,1750152632565,-200.0,0.0001512,2]
[366240013,1750152632575,-719.18,0.0001512,2]
[366240014,1750152632585,-207.4,0.00015122,2]
[366240015,1750152632594,-1765.88832079,0.00015122,2]
[366240020,1750152637775,-191.96767921,0.00015122,2]
[366240021,1750152637785,-300.0,0.00015122,2]
[366240022,1750152637796,-150.0,0.00015125,2]
[366240023,1750152637807,-385.49242881,0.00015162,2]
[366240024,1750152637819,-177.50757119,0.00015162,2]
[366240025,1750152637829,-483.22220447,0.00015173,2]
[366240039,1750152641442,-151.0,0.00014696,2]
[366240040,1750152641452,-191.108,0.00015173,2]
[366240041,1750152641465,-948.37196772,0.00015173,2]
[366240042,1750152642251,86.63804829,0.00013514,2]
[366240043,1750152642277,114.36195171,0.00013514,2]
[366240048,1750152643026,-1746.65782781,0.00015173,2]
[366240050,1750152643036,-1561.16000341,0.00015177,2]
[366240051,1750152643046,-314.0,0.00015194,2]
[366240052,1750152643056,-1220.0,0.0001521,2]
[366240053,1750152643066,-298.0,0.00015273,2]
[366240054,1750152643076,-211.36,0.00015309,2]
[366240056,1750152643086,-1000.0,0.00015316,2]
[366240058,1750152643095,-888.82216878,0.00015328,2]
[366240083,1750152646851,-1862.17783122,0.00015328,2]
[366240084,1750152646862,-150.0,0.00015332,2]
[366240085,1750152646873,-200.0,0.00015356,7]
[366240086,1750152646883,-264.0,0.00015392,4]
[366240087,1750152646893,-15385.42909497,0.000154,2]
[366240088,1750152646903,-797.51095104,0.00015413,2]
[366240089,1750152646914,-151.0,0.00015414,2]
[366240090,1750152646925,-126.52212277,0.00015423,2]
[366240091,1750152646938,-73.47787723,0.00015423,2]
[366240092,1750152646947,-1288.87076674,0.00015423,2]
[366240093,1750152646959,-22611.12923326,0.00015423,2]
[366240094,1750152646970,-1322.04,0.000155,2]
[366240095,1750152646979,-150.0,0.00015539,2]
[366240096,1750152646989,-1013.0,0.0001561,2]
[366240097,1750152647000,-168.0,0.00015645,2]
[366240098,1750152647009,-168.0,0.00015648,2]
[366240099,1750152647019,-1000.0,0.000157,5]
[366240100,1750152647028,-150.0,0.00015747,2]
[366240101,1750152647038,-150.0,0.00015747,2]
[366240102,1750152647048,-1013.0,0.00015797,2]
[366240103,1750152647058,-2100.0,0.000158,5]
[366240104,1750152647068,-201.50565928,0.000158,2]
[366240105,1750152647077,-201.50565922,0.000158,2]
[366240106,1750152647087,-201.50565922,0.000158,2]
[366240107,1750152647098,-201.50565922,0.000158,2]
[366240108,1750152647108,-201.50565922,0.000158,2]
[366240109,1750152647119,-1013.0,0.00015806,2]
[366240110,1750152647129,-264.0,0.00015861,4]
[366240111,1750152647140,-168.0,0.00015862,2]
[366240112,1750152647150,-19120.5576,0.000159,2]
[366240113,1750152647159,-3200.0,0.000159,5]
[366240114,1750152647169,-3563.5669,0.000159,2]
[366240115,1750152647179,-500.0,0.00015903,2]
[366240116,1750152647190,-150.20622828,0.00015911,2]
[366240117,1750152647199,-150.0,0.00015954,2]
[366240118,1750152647209,-3957.5,0.00016,2]
[366240119,1750152647218,-3957.5,0.00016,2]
[366240120,1750152647227,-3957.5,0.00016,2]
[366240121,1750152647237,-3957.5,0.00016,2]
[366240122,1750152647246,-3957.5,0.00016,2]
[366240123,1750152647257,-10022.58199082,0.00016,2]
[366240124,1750152647266,-13958.0,0.00016,2]
[366240125,1750152647276,-201.50565922,0.00016011,2]
[366240126,1750152647287,-168.0,0.00016032,2]
[366240127,1750152647297,-211.36,0.00016074,2]
[366240128,1750152647307,-150.20622824,0.00016097,2]
[366240129,1750152647317,-1021.0,0.000161,2]
[366240130,1750152647327,-1000.0,0.00016131,2]
[366240131,1750152647337,-746.65230281,0.0001614,2]
[366240132,1750152647348,-168.0,0.00016155,2]
[366240133,1750152647359,-868.60908591,0.00016158,2]
[366240134,1750152647368,-150.0,0.00016161,2]
[366240135,1750152647378,-150.0,0.00016165,2]
[366240136,1750152647387,-1000.0,0.0001617,2]
[366240137,1750152647397,-150.0,0.0001617,2]
[366240138,1750152647407,-214.64241721,0.00016172,2]
[366240139,1750152647417,-150.0,0.00016172,2]
[366240140,1750152647427,-150.0,0.00016177,2]
[366240141,1750152647438,-228.042,0.000162,2]
[366240142,1750152647448,-413.6994,0.000162,2]
[366240143,1750152647458,-200.9731,0.000162,2]
[366240144,1750152647468,-250.0,0.00016215,2]
[366240145,1750152647478,-201.50565922,0.00016233,2]
[366240146,1750152647487,-533.3810874,0.00016238,2]
[366240147,1750152647497,-433.0,0.00016241,2]
[366240148,1750152647507,-150.0,0.00016251,2]
[366240149,1750152647516,-4091.0,0.00016257,2]
[366240150,1750152647525,-155.0,0.00016257,2]
[366240151,1750152647849,-5218.055,0.00016257,2]
[366240152,1750152647860,-419.087,0.00016257,2]
[366240153,1750152647869,-946.0,0.00016257,2]
[366240154,1750152647879,-224.70087446,0.00016268,2]
[366240155,1750152647888,-242.36497447,0.00016268,2]
[366240156,1750152647898,-200.0,0.00016268,2]
[366240157,1750152647907,-912.333676,0.00016269,2]
[366240158,1750152647917,-150.20622824,0.00016284,2]
[366240159,1750152647927,-150.0,0.00016288,2]
[366240160,1750152647937,-150.0,0.00016291,2]
[366240161,1750152647947,-4300.0,0.000163,5]
[366240162,1750152647957,-746.61,0.0001631,2]
[366240163,1750152647967,-150.0,0.00016326,2]
[366240164,1750152647976,-339.0,0.00016326,2]
[366240165,1750152647986,-420.0,0.00016327,2]
[366240166,1750152647996,-420.0,0.00016327,2]
[366240167,1750152648006,-150.0,0.00016329,2]
[366240168,1750152648016,-264.0,0.00016331,5]
[366240169,1750152648026,-1368.883,0.00016337,2]
[366240170,1750152648037,-372.1534311,0.00016337,2]
[366240171,1750152648046,-234.30044349,0.00016337,2]
[366240172,1750152648056,-9476.13601068,0.00016337,2]
[366240173,1750152648066,-624.9571125,0.00016338,2]
[366240174,1750152648075,-24770.899,0.00016338,2]
[366240175,1750152648085,-3898.5246,0.00016338,2]
[366240176,1750152648095,-452.1229,0.00016338,2]
[366240177,1750152648105,-2500.0,0.00016338,2]
[366240178,1750152648115,-161.63537495,0.00016338,2]
[366240179,1750152648124,-535.4257428,0.00016338,2]
[366240180,1750152648134,-320.393436,0.00016338,2]
[366240181,1750152648144,-624.9571125,0.00016338,2]
[366240182,1750152648154,-150.0,0.00016341,2]
[366240183,1750152648164,-150.0,0.00016345,2]
[366240184,1750152648174,-150.0,0.00016354,2]
[366240185,1750152648183,-150.0,0.00016358,2]
[366240186,1750152648194,-150.0,0.0001636,2]
[366240187,1750152648204,-150.0,0.00016365,2]
[366240188,1750152648214,-150.0,0.00016368,2]
[366240189,1750152648224,-975.25682582,0.00016373,2]
[366240190,1750152648234,-975.25682582,0.00016377,2]
[366240191,1750152648244,-200.0,0.00016384,2]
[366240192,1750152648254,-245.34075746,0.00016387,2]
[366240193,1750152648264,-300.55601722,0.00016388,2]
[366240194,1750152648275,-975.25682582,0.00016391,2]
[366240195,1750152648285,-245.34075746,0.00016392,2]
[366240196,1750152648295,-444.99062571,0.00016393,2]
[366240197,1750152648305,-151.0,0.00016393,2]
[366240198,1750152648315,-200.0,0.00016393,2]
[366240199,1750152648325,-388.98386906,0.00016393,2]
[366240200,1750152648336,-300.0,0.00016393,2]
[366240201,1750152648345,-2000.0,0.00016393,2]
[366240202,1750152648355,-200.0,0.00016393,2]
[366240203,1750152648365,-29460.82749728,0.00016394,2]
[366240204,1750152648375,-200.0,0.00016396,2]
[366240205,1750152648385,-975.25682582,0.00016397,2]
[366240206,1750152648395,-372.15343105,0.000164,2]
[366240207,1750152648405,-5400.0,0.000164,5]
[366240208,1750152648415,-245.34075746,0.000164,2]
[366240209,1750152648425,-150.0,0.00016401,2]
[366240210,1750152648435,-208.52931246,0.00016401,2]
[366240211,1750152648445,-208.52931246,0.00016402,2]
[366240212,1750152648455,-208.52931246,0.00016403,2]
[366240213,1750152648465,-208.52931246,0.00016404,2]